[Event "Early-Titled-Tuesday-Blitz-July-09-2024"]
[Site "Chess.com"]
[Date "2024.07.09"]
[Round "10"]
[White "Chesstiger64"]
[Black "MaxLeto"]
[Result "0-1"]
[WhiteElo "2381"]
[BlackElo "2496"]
[TimeControl "180+1"]
[EndTime "9:56:51 PDT"]
[Termination "MaxLeto won by checkmate"]

1. d4 {[%clk 0:03:00.9]} 1... d5 {[%clk 0:02:59.7]} 2. Nf3 {[%clk 0:03:00.9]}
2... Nf6 {[%clk 0:02:59.9]} 3. e3 {[%clk 0:03:01.1]} 3... e6 {[%clk 0:02:59]} 4.
c3 {[%clk 0:03:01.1]} 4... c5 {[%clk 0:02:58.2]} 5. Bd3 {[%clk 0:03:01.5]} 5...
Nc6 {[%clk 0:02:58.7]} 6. Nbd2 {[%clk 0:03:01.7]} 6... b6 {[%clk 0:02:58.6]} 7.
O-O {[%clk 0:03:01.2]} 7... Bb7 {[%clk 0:02:58.8]} 8. dxc5 {[%clk 0:02:59.7]}
8... Bxc5 {[%clk 0:02:56.3]} 9. e4 {[%clk 0:03:00.1]} 9... Qc7 {[%clk
0:02:32.4]} 10. Qe2 {[%clk 0:02:59.4]} 10... dxe4 {[%clk 0:02:18.9]} 11. Nxe4
{[%clk 0:02:58.7]} 11... Nxe4 {[%clk 0:02:18.4]} 12. Bxe4 {[%clk 0:02:58.5]}
12... h6 {[%clk 0:02:07.7]} 13. Rd1 {[%clk 0:02:35.9]} 13... O-O {[%clk
0:02:04]} 14. Bc2 {[%clk 0:02:30]} 14... Rfe8 {[%clk 0:02:01.2]} 15. Qe4 {[%clk
0:02:14.1]} 15... f5 {[%clk 0:01:54.7]} 16. Qh4 {[%clk 0:02:14.6]} 16... Be7
{[%clk 0:01:36.7]} 17. Qh5 {[%clk 0:02:12]} 17... Bf6 {[%clk 0:01:19.1]} 18. Bb3
{[%clk 0:02:07.8]} 18... Na5 {[%clk 0:01:06.4]} 19. Bc2 {[%clk 0:01:42.6]} 19...
Rad8 {[%clk 0:00:59.4]} 20. Rxd8 {[%clk 0:01:40.3]} 20... Rxd8 {[%clk
0:00:57.6]} 21. h4 {[%clk 0:01:05.7]} 21... Nc4 {[%clk 0:00:51.5]} 22. Ng5
{[%clk 0:00:49.5]} 22... hxg5 {[%clk 0:00:40.9]} 23. hxg5 {[%clk 0:00:48.8]}
23... Be5 {[%clk 0:00:35.9]} 24. g6 {[%clk 0:00:46.4]} 24... Nd2 {[%clk
0:00:14.5]} 25. Bb3 {[%clk 0:00:29.3]} 25... Nxb3 {[%clk 0:00:09.6]} 26. axb3
{[%clk 0:00:26]} 26... Qc6 {[%clk 0:00:02.3]} 27. Qh7+ {[%clk 0:00:22.2]} 27...
Kf8 {[%clk 0:00:02.1]} 28. Qh8+ {[%clk 0:00:22.4]} 28... Ke7 {[%clk 0:00:02.5]}
29. Bg5+ {[%clk 0:00:23.1]} 29... Bf6 {[%clk 0:00:02.4]} 30. Qxg7+ {[%clk
0:00:21.6]} 30... Kd6 {[%clk 0:00:02.1]} 31. Rd1+ {[%clk 0:00:19.5]} 31... Kc5
{[%clk 0:00:02.4]} 32. b4+ {[%clk 0:00:19.3]} 32... Kb5 {[%clk 0:00:02.6]} 33.
c4+ {[%clk 0:00:15.1]} 33... Kxb4 {[%clk 0:00:02.9]} 34. Bd2+ {[%clk 0:00:13.9]}
34... Kb3 {[%clk 0:00:03]} 35. Qxf6 {[%clk 0:00:10.1]} 35... Qxg2# {[%clk
0:00:03]} 0-1

[Event "Early-Titled-Tuesday-Blitz-July-09-2024"]
[Site "Chess.com"]
[Date "2024.07.09"]
[Round "10"]
[White "UnTucopalaTimba"]
[Black "lindsay790"]
[Result "1-0"]
[WhiteElo "2119"]
[BlackElo "2097"]
[TimeControl "180+1"]
[EndTime "9:56:52 PDT"]
[Termination "UnTucopalaTimba won by resignation"]

1. e4 {[%clk 0:02:59]} 1... c5 {[%clk 0:02:55.7]} 2. Nf3 {[%clk 0:02:57.9]} 2...
d6 {[%clk 0:02:54.8]} 3. Bb5+ {[%clk 0:02:53.7]} 3... Bd7 {[%clk 0:02:53.6]} 4.
Bxd7+ {[%clk 0:02:53.4]} 4... Nxd7 {[%clk 0:02:53.8]} 5. O-O {[%clk 0:02:53.2]}
5... Ngf6 {[%clk 0:02:53.2]} 6. Qe2 {[%clk 0:02:53.2]} 6... g6 {[%clk
0:02:53.3]} 7. c3 {[%clk 0:02:52.3]} 7... Bg7 {[%clk 0:02:51.9]} 8. d4 {[%clk
0:02:52.5]} 8... e6 {[%clk 0:02:43.5]} 9. Bf4 {[%clk 0:02:44.7]} 9... Qe7 {[%clk
0:02:32.9]} 10. Nbd2 {[%clk 0:02:42.3]} 10... e5 {[%clk 0:02:29.7]} 11. dxe5
{[%clk 0:02:35.8]} 11... dxe5 {[%clk 0:02:29.3]} 12. Bg3 {[%clk 0:02:28.3]}
12... O-O {[%clk 0:02:28.8]} 13. Nc4 {[%clk 0:02:26.2]} 13... Nh5 {[%clk
0:02:24.7]} 14. Bh4 {[%clk 0:02:19.3]} 14... f6 {[%clk 0:02:01.1]} 15. Rad1
{[%clk 0:02:13.4]} 15... Rad8 {[%clk 0:01:56.8]} 16. Qc2 {[%clk 0:01:58.2]}
16... g5 {[%clk 0:01:22.1]} 17. Bg3 {[%clk 0:01:56.1]} 17... Nb8 {[%clk
0:00:58.6]} 18. Qb3 {[%clk 0:01:54.2]} 18... Kh8 {[%clk 0:00:56.1]} 19. Ne3
{[%clk 0:01:51]} 19... Nc6 {[%clk 0:00:34.7]} 20. Nf5 {[%clk 0:01:45.5]} 20...
Qc7 {[%clk 0:00:25.7]} 21. Nd2 {[%clk 0:01:26.2]} 21... a6 {[%clk 0:00:21]} 22.
Nc4 {[%clk 0:01:23.4]} 22... b5 {[%clk 0:00:21.1]} 23. Nce3 {[%clk 0:01:12.2]}
23... c4 {[%clk 0:00:20.8]} 24. Qc2 {[%clk 0:01:11.5]} 24... Ne7 {[%clk
0:00:16.5]} 25. Nxg7 {[%clk 0:01:08.5]} 25... Kxg7 {[%clk 0:00:16.1]} 26. Qe2
{[%clk 0:01:05.1]} 26... Nxg3 {[%clk 0:00:14.9]} 27. hxg3 {[%clk 0:01:04.2]}
27... Kg6 {[%clk 0:00:12.1]} 28. Qg4 {[%clk 0:01:01.5]} 28... Qc8 {[%clk
0:00:09.9]} 29. Qf3 {[%clk 0:00:58.8]} 29... Qe6 {[%clk 0:00:09.4]} 30. Rfe1
{[%clk 0:00:57.9]} 30... h5 {[%clk 0:00:06.8]} 31. Kh2 {[%clk 0:00:50.5]} 31...
Rd3 {[%clk 0:00:06.3]} 32. Rxd3 {[%clk 0:00:49.6]} 32... cxd3 {[%clk 0:00:06.5]}
33. Rd1 {[%clk 0:00:48.8]} 33... Rd8 {[%clk 0:00:06.5]} 34. g4 {[%clk
0:00:43.7]} 34... h4 {[%clk 0:00:05.9]} 35. Nf5 {[%clk 0:00:43.2]} 35... Nc6
{[%clk 0:00:03.2]} 36. Rxd3 {[%clk 0:00:41.2]} 36... Rxd3 {[%clk 0:00:01.3]} 37.
Qxd3 {[%clk 0:00:41.2]} 37... Qxa2 {[%clk 0:00:01.6]} 38. Qd7 {[%clk 0:00:32.6]}
38... Qf7 {[%clk 0:00:01.7]} 39. Qxc6 {[%clk 0:00:31.8]} 39... b4 {[%clk
0:00:01.9]} 1-0

[Event "Early-Titled-Tuesday-Blitz-July-09-2024"]
[Site "Chess.com"]
[Date "2024.07.09"]
[Round "10"]
[White "chessbaerchen"]
[Black "Byniolus"]
[Result "0-1"]
[WhiteElo "2657"]
[BlackElo "2794"]
[TimeControl "180+1"]
[EndTime "9:56:54 PDT"]
[Termination "Byniolus won by resignation"]

1. d4 {[%clk 0:03:00.9]} 1... d6 {[%clk 0:02:58.9]} 2. e4 {[%clk 0:03:00.4]}
2... Nf6 {[%clk 0:02:59]} 3. Bd3 {[%clk 0:03:00.6]} 3... e5 {[%clk 0:02:58.8]}
4. Nf3 {[%clk 0:03:00]} 4... exd4 {[%clk 0:02:58.2]} 5. Nxd4 {[%clk 0:03:00.5]}
5... Nbd7 {[%clk 0:02:59.1]} 6. c4 {[%clk 0:02:58.8]} 6... Nc5 {[%clk
0:02:58.2]} 7. Nc3 {[%clk 0:02:58.6]} 7... Nxd3+ {[%clk 0:02:57.6]} 8. Qxd3
{[%clk 0:02:59.5]} 8... g6 {[%clk 0:02:55]} 9. O-O {[%clk 0:02:57.7]} 9... Bg7
{[%clk 0:02:55.4]} 10. h3 {[%clk 0:02:58.3]} 10... O-O {[%clk 0:02:55.2]} 11.
Be3 {[%clk 0:02:58.6]} 11... c6 {[%clk 0:02:51.5]} 12. Rfe1 {[%clk 0:02:58.8]}
12... d5 {[%clk 0:02:42.4]} 13. cxd5 {[%clk 0:02:47.6]} 13... cxd5 {[%clk
0:02:43.3]} 14. e5 {[%clk 0:02:47.8]} 14... Nd7 {[%clk 0:02:35]} 15. e6 {[%clk
0:02:43.6]} 15... fxe6 {[%clk 0:02:20.6]} 16. Nxe6 {[%clk 0:01:45]} 16... Ne5
{[%clk 0:02:17.3]} 17. Qxd5 {[%clk 0:00:59.8]} 17... Qxd5 {[%clk 0:02:08]} 18.
Nxd5 {[%clk 0:01:00.7]} 18... Bxe6 {[%clk 0:02:08.6]} 19. Nc7 {[%clk 0:01:01]}
19... Bf5 {[%clk 0:01:49.9]} 20. Nxa8 {[%clk 0:00:59.4]} 20... Rxa8 {[%clk
0:01:50.8]} 21. Re2 {[%clk 0:00:30.8]} 21... Nc4 {[%clk 0:01:45.5]} 22. Rc1
{[%clk 0:00:19]} 22... Bd3 {[%clk 0:01:31.5]} 23. Ree1 {[%clk 0:00:17]} 23...
Bxb2 {[%clk 0:01:32]} 24. Rcd1 {[%clk 0:00:17.3]} 24... Bc3 {[%clk 0:01:29.5]}
25. Rxd3 {[%clk 0:00:17.4]} 25... Bxe1 {[%clk 0:01:29.6]} 26. Rd7 {[%clk
0:00:18.1]} 26... Nxe3 {[%clk 0:01:25.4]} 27. fxe3 {[%clk 0:00:18]} 27... b5
{[%clk 0:01:19.7]} 28. Kf1 {[%clk 0:00:18.4]} 28... Ba5 {[%clk 0:01:19.6]} 29.
Ke2 {[%clk 0:00:19.1]} 29... Bb6 {[%clk 0:01:20]} 30. Rd5 {[%clk 0:00:18.6]}
30... b4 {[%clk 0:01:17.1]} 31. Rb5 {[%clk 0:00:18.8]} 31... Re8 {[%clk
0:01:14.8]} 32. Rxb4 {[%clk 0:00:19.2]} 32... Rxe3+ {[%clk 0:01:15]} 33. Kf1
{[%clk 0:00:19.3]} 33... Kg7 {[%clk 0:00:52.2]} 34. Rb2 {[%clk 0:00:19.6]} 34...
h5 {[%clk 0:00:51.9]} 35. a4 {[%clk 0:00:18.9]} 35... Kh6 {[%clk 0:00:50.5]} 36.
Rb5 {[%clk 0:00:18.5]} 36... Ra3 {[%clk 0:00:50.1]} 37. Rb4 {[%clk 0:00:19.1]}
37... Ra1+ {[%clk 0:00:48.8]} 38. Ke2 {[%clk 0:00:19.7]} 38... Ra2+ {[%clk
0:00:49.3]} 39. Kf3 {[%clk 0:00:20.3]} 39... Ra3+ {[%clk 0:00:44.2]} 40. Ke2
{[%clk 0:00:19.8]} 40... Kg5 {[%clk 0:00:38.8]} 41. Rb5+ {[%clk 0:00:19.5]}
41... Kh4 {[%clk 0:00:35.9]} 42. a5 {[%clk 0:00:19.1]} 42... Rxa5 {[%clk
0:00:34.1]} 43. Rb3 {[%clk 0:00:19.2]} 43... Kg5 {[%clk 0:00:31.9]} 44. Kf3
{[%clk 0:00:19.1]} 44... Kh6 {[%clk 0:00:30.9]} 45. h4 {[%clk 0:00:18.7]} 45...
Ra4 {[%clk 0:00:29.2]} 46. Kg3 {[%clk 0:00:18.9]} 46... Bd8 {[%clk 0:00:26.6]}
47. Rb7 {[%clk 0:00:17.6]} 47... Bxh4+ {[%clk 0:00:26.2]} 48. Kh3 {[%clk
0:00:18]} 48... Bf2 {[%clk 0:00:25.7]} 0-1

[Event "Early-Titled-Tuesday-Blitz-July-09-2024"]
[Site "Chess.com"]
[Date "2024.07.09"]
[Round "10"]
[White "MusicCityMaster"]
[Black "nindjaxx8"]
[Result "0-1"]
[WhiteElo "2506"]
[BlackElo "2695"]
[TimeControl "180+1"]
[EndTime "9:56:55 PDT"]
[Termination "nindjaxx8 won by checkmate"]

1. e4 {[%clk 0:03:00.9]} 1... e6 {[%clk 0:02:51.4]} 2. d4 {[%clk 0:02:55.2]}
2... d5 {[%clk 0:02:51.2]} 3. e5 {[%clk 0:02:55.9]} 3... c5 {[%clk 0:02:47.4]}
4. c3 {[%clk 0:02:56.8]} 4... Nc6 {[%clk 0:02:47]} 5. Nf3 {[%clk 0:02:56.2]}
5... Qb6 {[%clk 0:02:47.1]} 6. Bd3 {[%clk 0:02:48]} 6... cxd4 {[%clk 0:02:44.1]}
7. O-O {[%clk 0:02:44.7]} 7... Nge7 {[%clk 0:02:39.5]} 8. h4 {[%clk 0:02:42.6]}
8... Ng6 {[%clk 0:02:35.8]} 9. Re1 {[%clk 0:02:40.8]} 9... Be7 {[%clk
0:02:32.1]} 10. h5 {[%clk 0:02:37.7]} 10... Nh4 {[%clk 0:02:29.4]} 11. Nbd2
{[%clk 0:02:03.7]} 11... dxc3 {[%clk 0:02:25.9]} 12. bxc3 {[%clk 0:02:03.7]}
12... Bd7 {[%clk 0:02:25.2]} 13. Rb1 {[%clk 0:01:54.5]} 13... Qc7 {[%clk
0:02:20.2]} 14. Nxh4 {[%clk 0:01:54.2]} 14... Bxh4 {[%clk 0:02:20.7]} 15. Qg4
{[%clk 0:01:54.6]} 15... Be7 {[%clk 0:02:20.1]} 16. Qxg7 {[%clk 0:01:54.2]}
16... O-O-O {[%clk 0:02:19.9]} 17. Nf3 {[%clk 0:01:43]} 17... Bc5 {[%clk
0:02:13.4]} 18. Bxh7 {[%clk 0:01:32.1]} 18... Qa5 {[%clk 0:02:04.1]} 19. Bg5
{[%clk 0:01:15]} 19... Rde8 {[%clk 0:01:51.7]} 20. Re2 {[%clk 0:01:09.5]} 20...
Qxc3 {[%clk 0:01:39.1]} 21. Rc2 {[%clk 0:01:08.9]} 21... Qa5 {[%clk 0:01:31.7]}
22. h6 {[%clk 0:01:07.4]} 22... Bb6 {[%clk 0:01:28.8]} 23. Bd3 {[%clk
0:01:02.5]} 23... Reg8 {[%clk 0:01:28.5]} 24. Qxf7 {[%clk 0:01:02.6]} 24... Rf8
{[%clk 0:01:24.7]} 25. Qh5 {[%clk 0:00:58.7]} 25... Bd8 {[%clk 0:01:04.8]} 26.
h7 {[%clk 0:00:44.9]} 26... Bxg5 {[%clk 0:01:02.5]} 27. Nxg5 {[%clk 0:00:45]}
27... Qa3 {[%clk 0:00:58.6]} 28. Rb3 {[%clk 0:00:33.3]} 28... Qe7 {[%clk
0:00:58.5]} 29. a4 {[%clk 0:00:29.4]} 29... Kb8 {[%clk 0:00:58.3]} 30. Nf3
{[%clk 0:00:26.4]} 30... Qg7 {[%clk 0:00:48.2]} 31. Rxc6 {[%clk 0:00:21.5]}
31... Bxc6 {[%clk 0:00:47.1]} 32. Nd4 {[%clk 0:00:21.9]} 32... Bd7 {[%clk
0:00:37.1]} 33. a5 {[%clk 0:00:21.7]} 33... Qe7 {[%clk 0:00:27.8]} 34. Ba6
{[%clk 0:00:20.3]} 34... Qc5 {[%clk 0:00:26.1]} 35. Rxb7+ {[%clk 0:00:14.5]}
35... Ka8 {[%clk 0:00:26.1]} 36. Nb5 {[%clk 0:00:14.1]} 36... Bxb5 {[%clk
0:00:14.7]} 37. Rxb5 {[%clk 0:00:13]} 37... Qxf2+ {[%clk 0:00:15.2]} 38. Kh2
{[%clk 0:00:12.9]} 38... Rf7 {[%clk 0:00:10.5]} 39. Qg4 {[%clk 0:00:07.3]} 39...
Rfxh7+ {[%clk 0:00:10.4]} 40. Qh3 {[%clk 0:00:06.4]} 40... Rxh3# {[%clk
0:00:10.5]} 0-1

[Event "Early-Titled-Tuesday-Blitz-July-09-2024"]
[Site "Chess.com"]
[Date "2024.07.09"]
[Round "10"]
[White "atbenina64"]
[Black "ValeriyGrinev"]
[Result "1/2-1/2"]
[WhiteElo "2816"]
[BlackElo "2675"]
[TimeControl "180+1"]
[EndTime "9:57:01 PDT"]
[Termination "Game drawn by repetition"]

1. c4 {[%clk 0:03:00.5]} 1... c5 {[%clk 0:02:59.2]} 2. Nf3 {[%clk 0:02:59.1]}
2... Nc6 {[%clk 0:02:57.9]} 3. Nc3 {[%clk 0:02:59.2]} 3... g6 {[%clk 0:02:56.8]}
4. e3 {[%clk 0:02:59.2]} 4... Nf6 {[%clk 0:02:54.9]} 5. d4 {[%clk 0:03:00.1]}
5... cxd4 {[%clk 0:02:54.6]} 6. exd4 {[%clk 0:03:01]} 6... d5 {[%clk 0:02:53.4]}
7. cxd5 {[%clk 0:03:01.9]} 7... Nxd5 {[%clk 0:02:53.4]} 8. Qb3 {[%clk
0:03:02.5]} 8... Nxc3 {[%clk 0:02:53.3]} 9. Bc4 {[%clk 0:03:03]} 9... e6 {[%clk
0:02:52.9]} 10. bxc3 {[%clk 0:03:02.8]} 10... Bg7 {[%clk 0:02:52.5]} 11. Ba3
{[%clk 0:02:57.3]} 11... Bf8 {[%clk 0:02:51.8]} 12. O-O {[%clk 0:02:38.2]} 12...
Bxa3 {[%clk 0:02:49.3]} 13. Qxa3 {[%clk 0:02:39.1]} 13... Qe7 {[%clk 0:02:48.9]}
14. Qc1 {[%clk 0:02:36.5]} 14... O-O {[%clk 0:02:46.5]} 15. Re1 {[%clk
0:02:36.9]} 15... Qf6 {[%clk 0:02:45.8]} 16. Rb1 {[%clk 0:02:30.8]} 16... b6
{[%clk 0:02:44.9]} 17. Bd3 {[%clk 0:02:22.6]} 17... Bb7 {[%clk 0:02:43.5]} 18.
Qd2 {[%clk 0:02:18.9]} 18... Rac8 {[%clk 0:02:42.6]} 19. a4 {[%clk 0:02:18.5]}
19... Rfd8 {[%clk 0:02:41.7]} 20. Qe2 {[%clk 0:02:17]} 20... Kg7 {[%clk
0:02:35.7]} 21. Be4 {[%clk 0:02:12.3]} 21... Na5 {[%clk 0:02:33.5]} 22. Bxb7
{[%clk 0:02:11.7]} 22... Nxb7 {[%clk 0:02:34.4]} 23. Rec1 {[%clk 0:02:06.9]}
23... Rc7 {[%clk 0:02:30.9]} 24. Ne5 {[%clk 0:02:06.1]} 24... Rdc8 {[%clk
0:02:29.1]} 25. c4 {[%clk 0:02:05.4]} 25... Nd6 {[%clk 0:02:25.5]} 26. Rb3
{[%clk 0:02:01.1]} 26... Nf5 {[%clk 0:02:22.6]} 27. Rd3 {[%clk 0:01:51.5]} 27...
h5 {[%clk 0:02:19.3]} 28. a5 {[%clk 0:01:45.7]} 28... Rd8 {[%clk 0:02:13.4]} 29.
axb6 {[%clk 0:01:44.1]} 29... axb6 {[%clk 0:02:12]} 30. Rcd1 {[%clk 0:01:38.6]}
30... Rd6 {[%clk 0:02:04.1]} 31. h3 {[%clk 0:01:27.2]} 31... Rc8 {[%clk
0:02:02.2]} 32. g4 {[%clk 0:01:24.5]} 32... hxg4 {[%clk 0:01:58.5]} 33. hxg4
{[%clk 0:01:24.9]} 33... Nh4 {[%clk 0:01:42.4]} 34. Qe4 {[%clk 0:01:21.3]} 34...
Rh8 {[%clk 0:01:35]} 35. c5 {[%clk 0:01:13.2]} 35... bxc5 {[%clk 0:01:32.7]} 36.
dxc5 {[%clk 0:01:14.1]} 36... Rxd3 {[%clk 0:01:32.1]} 37. Rxd3 {[%clk 0:01:15]}
37... g5 {[%clk 0:01:28.6]} 38. Qd4 {[%clk 0:01:06.8]} 38... Ng6 {[%clk
0:01:10.2]} 39. Nd7 {[%clk 0:00:50]} 39... Qxd4 {[%clk 0:01:06]} 40. Rxd4 {[%clk
0:00:50.9]} 40... Rc8 {[%clk 0:01:04.8]} 41. Rc4 {[%clk 0:00:44.4]} 41... Rc7
{[%clk 0:01:02.7]} 42. c6 {[%clk 0:00:43.5]} 42... Ne7 {[%clk 0:01:01.3]} 43.
Nb8 {[%clk 0:00:39.8]} 43... Kf6 {[%clk 0:00:58.1]} 44. Nd7+ {[%clk 0:00:37.6]}
44... Kg7 {[%clk 0:00:57.2]} 45. Nb8 {[%clk 0:00:34.5]} 45... Kf6 {[%clk
0:00:56.9]} 46. Rc5 {[%clk 0:00:34.4]} 46... Nd5 {[%clk 0:00:39.5]} 47. Na6
{[%clk 0:00:23.7]} 47... Rc8 {[%clk 0:00:38.7]} 48. c7 {[%clk 0:00:19.3]} 48...
Ke7 {[%clk 0:00:38.3]} 49. Rc6 {[%clk 0:00:18.5]} 49... Kd7 {[%clk 0:00:34.1]}
50. Nb8+ {[%clk 0:00:18.7]} 50... Ke7 {[%clk 0:00:34.3]} 51. Na6 {[%clk
0:00:18.5]} 51... Kd7 {[%clk 0:00:34.3]} 52. Nb8+ {[%clk 0:00:18.4]} 52... Ke7
{[%clk 0:00:33.6]} 53. Na6 {[%clk 0:00:18.5]} 1/2-1/2

[Event "Early-Titled-Tuesday-Blitz-July-09-2024"]
[Site "Chess.com"]
[Date "2024.07.09"]
[Round "10"]
[White "lu1860"]
[Black "Kombinator01"]
[Result "0-1"]
[WhiteElo "2094"]
[BlackElo "2444"]
[TimeControl "180+1"]
[EndTime "9:57:05 PDT"]
[Termination "Kombinator01 won on time"]

1. d4 {[%clk 0:02:56.7]} 1... d5 {[%clk 0:02:53.7]} 2. c4 {[%clk 0:02:56.3]}
2... c5 {[%clk 0:02:51.8]} 3. cxd5 {[%clk 0:02:52.8]} 3... Qxd5 {[%clk
0:02:49.8]} 4. Nf3 {[%clk 0:02:51.4]} 4... cxd4 {[%clk 0:02:36.2]} 5. Qxd4
{[%clk 0:02:46.8]} 5... Nf6 {[%clk 0:02:33.6]} 6. Nc3 {[%clk 0:02:44.7]} 6...
Qxd4 {[%clk 0:02:33.3]} 7. Nxd4 {[%clk 0:02:45.6]} 7... a6 {[%clk 0:02:32.1]} 8.
Bg5 {[%clk 0:02:33.9]} 8... e5 {[%clk 0:02:23]} 9. Bxf6 {[%clk 0:02:24.7]} 9...
gxf6 {[%clk 0:02:22.7]} 10. Nb3 {[%clk 0:02:19.7]} 10... Nc6 {[%clk 0:02:22.6]}
11. e3 {[%clk 0:02:15.1]} 11... Be6 {[%clk 0:02:21.1]} 12. Be2 {[%clk 0:01:56]}
12... f5 {[%clk 0:02:11.3]} 13. O-O {[%clk 0:01:53.2]} 13... Rg8 {[%clk
0:02:10.4]} 14. Rfd1 {[%clk 0:01:44.3]} 14... Nb4 {[%clk 0:01:57]} 15. Na5
{[%clk 0:01:33.3]} 15... b6 {[%clk 0:01:47.1]} 16. Nc4 {[%clk 0:01:26.4]} 16...
Bxc4 {[%clk 0:01:44.2]} 17. Bxc4 {[%clk 0:01:27.3]} 17... b5 {[%clk 0:01:42.5]}
18. Bd5 {[%clk 0:01:14.2]} 18... Rd8 {[%clk 0:01:35.3]} 19. a3 {[%clk
0:01:12.1]} 19... Nxd5 {[%clk 0:01:06.6]} 20. Nxd5 {[%clk 0:01:13]} 20... Rg6
{[%clk 0:01:00.8]} 21. Rac1 {[%clk 0:00:53.1]} 21... Rgd6 {[%clk 0:00:56.8]} 22.
Nc7+ {[%clk 0:00:52]} 22... Ke7 {[%clk 0:00:55.8]} 23. Rxd6 {[%clk 0:00:34]}
23... Rxd6 {[%clk 0:00:55.7]} 24. Kf1 {[%clk 0:00:27.6]} 24... f4 {[%clk
0:00:53.3]} 25. Ke2 {[%clk 0:00:26.2]} 25... fxe3 {[%clk 0:00:48.2]} 26. fxe3
{[%clk 0:00:25.7]} 26... Kd7 {[%clk 0:00:34.8]} 27. b4 {[%clk 0:00:17.8]} 27...
Be7 {[%clk 0:00:28.5]} 28. Rc5 {[%clk 0:00:17.6]} 28... Rd2+ {[%clk 0:00:11.7]}
29. Kxd2 {[%clk 0:00:15.8]} 29... Bxc5 {[%clk 0:00:12.2]} 30. Nxa6 {[%clk
0:00:15.6]} 30... Bd6 {[%clk 0:00:11.7]} 31. Kd3 {[%clk 0:00:15]} 31... f5
{[%clk 0:00:09.5]} 32. e4 {[%clk 0:00:14.5]} 32... f4 {[%clk 0:00:09.8]} 33. Ke2
{[%clk 0:00:09.6]} 33... Kc6 {[%clk 0:00:09.3]} 34. Kf3 {[%clk 0:00:09]} 34...
Kb6 {[%clk 0:00:09.6]} 35. Nc5 {[%clk 0:00:05.7]} 35... Bxc5 {[%clk 0:00:09.8]}
36. bxc5+ {[%clk 0:00:06.1]} 36... Kxc5 {[%clk 0:00:10.7]} 37. g3 {[%clk
0:00:06.3]} 37... fxg3 {[%clk 0:00:10]} 38. hxg3 {[%clk 0:00:06.6]} 38... Kd4
{[%clk 0:00:10.5]} 39. g4 {[%clk 0:00:06.1]} 39... h6 {[%clk 0:00:09.6]} 0-1

[Event "Early-Titled-Tuesday-Blitz-July-09-2024"]
[Site "Chess.com"]
[Date "2024.07.09"]
[Round "10"]
[White "Nemegejas"]
[Black "MetiForce"]
[Result "0-1"]
[WhiteElo "2944"]
[BlackElo "2877"]
[TimeControl "180+1"]
[EndTime "9:57:08 PDT"]
[Termination "MetiForce won by resignation"]

1. Nf3 {[%clk 0:03:00.9]} 1... Nf6 {[%clk 0:02:58.2]} 2. g3 {[%clk 0:02:59.3]}
2... g6 {[%clk 0:02:58.7]} 3. Bg2 {[%clk 0:02:59.1]} 3... Bg7 {[%clk 0:02:59.4]}
4. O-O {[%clk 0:02:59.6]} 4... O-O {[%clk 0:03:00.1]} 5. d4 {[%clk 0:03:00.2]}
5... d5 {[%clk 0:03:00.6]} 6. Bf4 {[%clk 0:02:55]} 6... c6 {[%clk 0:02:56.6]} 7.
Nbd2 {[%clk 0:02:50.4]} 7... Bf5 {[%clk 0:02:50.1]} 8. Nh4 {[%clk 0:02:45.1]}
8... Be6 {[%clk 0:02:45.3]} 9. c3 {[%clk 0:02:45]} 9... a5 {[%clk 0:02:44.6]}
10. Qc2 {[%clk 0:02:40.8]} 10... a4 {[%clk 0:02:42.5]} 11. Rad1 {[%clk
0:02:36.7]} 11... Qa5 {[%clk 0:02:41.2]} 12. Rfe1 {[%clk 0:02:33]} 12... Nbd7
{[%clk 0:02:39.3]} 13. Qc1 {[%clk 0:02:29.9]} 13... Rfe8 {[%clk 0:02:34.6]} 14.
a3 {[%clk 0:02:25.7]} 14... c5 {[%clk 0:02:22.9]} 15. Nhf3 {[%clk 0:02:19.6]}
15... Rac8 {[%clk 0:02:21.2]} 16. h3 {[%clk 0:02:11.4]} 16... Nb6 {[%clk
0:02:10.6]} 17. dxc5 {[%clk 0:01:57.1]} 17... Qxc5 {[%clk 0:02:08.7]} 18. Be3
{[%clk 0:01:57.5]} 18... Qa5 {[%clk 0:02:06.6]} 19. Bd4 {[%clk 0:01:57.7]} 19...
Bd7 {[%clk 0:01:43.8]} 20. Ne5 {[%clk 0:01:54.4]} 20... Bf5 {[%clk 0:01:37.8]}
21. g4 {[%clk 0:01:37.8]} 21... Be6 {[%clk 0:01:37.7]} 22. Nf1 {[%clk
0:01:26.3]} 22... Qb5 {[%clk 0:01:22]} 23. Ng3 {[%clk 0:01:22.2]} 23... Ne4
{[%clk 0:00:54.6]} 24. Qe3 {[%clk 0:00:53.2]} 24... Bxe5 {[%clk 0:00:35.5]} 25.
Bxe5 {[%clk 0:00:28.3]} 25... Nc4 {[%clk 0:00:35.5]} 26. Qd4 {[%clk 0:00:27.4]}
26... Nxe5 {[%clk 0:00:30.4]} 27. Qxe5 {[%clk 0:00:28.3]} 27... Nxg3 {[%clk
0:00:28.9]} 28. Qxg3 {[%clk 0:00:14.4]} 28... Qxb2 {[%clk 0:00:28.9]} 29. Bxd5
{[%clk 0:00:13.5]} 29... Rxc3 {[%clk 0:00:25.3]} 30. Qe5 {[%clk 0:00:11.6]}
30... Bxd5 {[%clk 0:00:23.3]} 31. Rxd5 {[%clk 0:00:11.7]} 31... Qxa3 {[%clk
0:00:23.7]} 32. Red1 {[%clk 0:00:09.9]} 32... Rc1 {[%clk 0:00:21.2]} 33. Kg2
{[%clk 0:00:05.9]} 33... Rxd1 {[%clk 0:00:19.9]} 34. Rxd1 {[%clk 0:00:06.8]}
34... Qb3 {[%clk 0:00:20.5]} 35. Rd3 {[%clk 0:00:06.2]} 35... Qc4 {[%clk
0:00:19.7]} 36. Rf3 {[%clk 0:00:02.2]} 36... b5 {[%clk 0:00:17.6]} 37. e4 {[%clk
0:00:02]} 37... b4 {[%clk 0:00:17.2]} 38. h4 {[%clk 0:00:02.7]} 38... b3 {[%clk
0:00:17.4]} 39. h5 {[%clk 0:00:03.3]} 39... Qe6 {[%clk 0:00:16.5]} 40. Qg5
{[%clk 0:00:03.7]} 40... Qxe4 {[%clk 0:00:15.2]} 41. Kg3 {[%clk 0:00:03.2]}
41... b2 {[%clk 0:00:13.9]} 42. Re3 {[%clk 0:00:03.5]} 42... b1=Q {[%clk
0:00:13.1]} 0-1